Workbook

Sheet Retornos_Mensais
C1: Preço | D1: Retornos mensais (%) - Tempo Contínuio | F1: Retornos mensais (%) acumulados - Tempo Contínuio
B2: BOVESPA | C2: TOTVS | D2: IBOVESPA | E2: =C2 -> TOTVS | F2: IBOVESPA | G2: =E2 -> TOTVS | H2: Distribuição Normal (retornos) | M2: Média | N2: Desvio padrão | O2: Prob (-1%<=x<=+1%) | P2: Prob (x>=0%) | Q2: ="VaR"&M6*100&"% - Normal" -> VaR5% - Normal | R2: ="VaR"&M6*100&"% - Lista" -> VaR5% - Lista | S2: Coef_Variacao | T2: Curtose
A3: Periodo | B3: ^BVSP | C3: TOTS3.SA | D3: ^BVSP | E3: =C3 -> TOTS3.SA | F3: ^BVSP | G3: =E3 -> TOTS3.SA | H3: =D3 -> ^BVSP | I3: =E3 -> TOTS3.SA | L3: =D3 -> ^BVSP | M3: =AVERAGE(dvec_bovespa) -> 0.00335797727 | N3: =_xlfn.STDEV.S(dvec_bovespa) -> 0.06539710771 | O3: =_xlfn.NORM.DIST(1%,M3,N3,TRUE)-_xlfn.NORM.DIST(-1%,M3,N3,TRUE) -> 0.1213734317 | P3: =1-_xlfn.NORM.DIST(0%,M3,N3,TRUE) -> 0.5204756864 | Q3: =_xlfn.NORM.INV(M6,M3,N3) -> -0.1042106925 | R3: =_xlfn.PERCENTILE.INC(dvec_bovespa,M6) -> -0.1040492366 | S3: =N3/M3 -> 19.47514901 | T3: =KURT(dvec_bovespa) -> 1.994857132
A4: 2006-02-01 | B4: 38383 | C4: 4.7 | D4: 0 | E4: 0 | F4: 0 | G4: 0 | H4: =_xlfn.NORM.DIST(D4,AVERAGE(dvec_bovespa),_xlfn.STDEV.S(dvec_bovespa),$M$7) -> 6.092268027 | I4: =_xlfn.NORM.DIST(E4,AVERAGE(dvec_totvs),_xlfn.STDEV.S(dvec_totvs),$M$7) -> 4.57717114 | L4: =E3 -> TOTS3.SA | M4: =AVERAGE(dvec_totvs) -> 0.01509964123 | N4: =_xlfn.STDEV.S(dvec_totvs) -> 0.08582045236 | O4: =_xlfn.NORM.DIST(1%,M4,N4,TRUE)-_xlfn.NORM.DIST(-1%,M4,N4,TRUE) -> 0.09134307639 | P4: =1-_xlfn.NORM.DIST(0%,M4,N4,TRUE) -> 0.5698312489 | Q4: =_xlfn.NORM.INV(M6,M4,N4) -> -0.1260624411 | R4: =_xlfn.PERCENTILE.INC(dvec_totvs,M6) -> -0.1139403807 | S4: =N4/M4 -> 5.683608706 | T4: =KURT(dvec_totvs) -> 2.117817786
A5: 2006-03-01 | B5: 37952 | C5: 5.38 | D5: =IF(ISERR(LN(B5)-LN(B4)),D4,LN(B5)-LN(B4)) -> -0.01129244986 | E5: =IF(ISERR(LN(C5)-LN(C4)),E4,LN(C5)-LN(C4)) -> 0.1351258655 | F5: =D5+F4 -> -0.01129244986 | G5: =E5+G4 -> 0.1351258655 | H5: 5.949133986 | I5: 1.748145047
A6: 2006-04-01 | B6: 40363 | C6: 5.09 | D6: =IF(ISERR(LN(B6)-LN(B5)),D5,LN(B6)-LN(B5)) -> 0.06159132037 | E6: =IF(ISERR(LN(C6)-LN(C5)),E5,LN(C6)-LN(C5)) -> -0.05541054361 | F6: =D6+F5 -> 0.05029887051 | G6: =E6+G5 -> 0.07971532185 | H6: 4.103669033 | I6: 3.316948211 | L6: VaR | M6: 0.05 | N6: ="--> Nivel de significância de "&(1-M6)*100&"%" -> --> Nivel de significância de 95%
A7: 2006-05-01 | B7: 36530 | C7: 4.16 | D7: -0.09977968294 | E7: -0.2017627563 | F7: =D7+F6 -> -0.04948081243 | G7: -0.1220474344 | H7: 1.758954085 | I7: 0.1908758991 | L7: Densidade | M7: FALSE
A8: 2006-06-01 | B8: 36631 | C8: 4.17 | D8: 0.002761035638 | E8: 0.002400961538 | F8: =D8+F7 -> -0.04671977679 | G8: -0.1196464729 | H8: 6.10005052 | I8: 4.597957267 | L8: Digite um retorno desejado -> | O8: 0.1
A9: 2006-07-01 | B9: 37077 | C9: 5.18 | D9: 0.01210195483 | E9: 0.2168890205 | F9: =D9+F8 -> -0.03461782196 | G9: 0.09724254756 | H9: 6.046019262 | I9: 0.2929540262 | L9: Este retorno ocorrerá a cada (assumindo que sejam normalmente distribuídos)
A10: 2006-08-01 | B10: 36232 | C10: 5.38 | D10: -0.02305412502 | E10: 0.0378833179 | F10: -0.05767194698 | G10: 0.1351258655 | H10: 5.622532357 | I10: 4.487606047 | N10: =L3 -> ^BVSP | O10: =1/(1-_xlfn.NORM.DIST($O$8,M3,N3,TRUE)) -> 14.34012665 | P10: meses
A11: 2006-09-01 | B11: 36449 | C11: 5.92 | D11: 0.005971316982 | E11: 0.09564807472 | F11: =D11+F10 -> -0.05170063 | G11: 0.2307739402 | H11: 6.095435842 | I11: 2.992482533 | N11: =L4 -> TOTS3.SA | O11: =1/(1-_xlfn.NORM.DIST($O$8,M4,N4,TRUE)) -> 6.20103648 | P11: meses
A12: 2006-10-01 | B12: 39263 | C12: 6.63 | D12: =IF(ISERR(LN(B12)-LN(B11)),D11,LN(B12)-LN(B11)) -> 0.07436857635 | E12: 0.1132683553 | F12: 0.02266794635 | G12: 0.3440422955 | H12: 3.383185497 | I12: 2.416507066
A13: 2006-11-01 | B13: 41932 | C13: 6.21 | D13: 0.06576665901 | E13: -0.06544390825 | F13: =D13+F12 -> 0.08843460535 | G13: =E13+G12 -> 0.2785983872 | H13: 3.868981254 | I13: 2.992642372
A14: 2006-12-01 | B14: 44474 | C14: 6.42 | D14: 0.05885549017 | E14: 0.03325722176 | F14: 0.1472900955 | G14: 0.311855609 | H14: 4.25569427 | I14: 4.545679008
A15: 2007-01-01 | B15: 44642 | C15: 6.69 | D15: 0.00377037118 | E15: 0.04119575644 | F15: 0.1510604667 | G15: 0.3530513654 | H15: 6.100183362 | I15: 4.438549647
A16: 2007-02-01 | B16: 43892 | C16: 7.22 | D16: -0.01694304881 | E16: 0.07624107876 | F16: 0.1341174179 | G16: 0.4292924442 | H16: 5.813345721 | I16: 3.606645259
A17: 2007-03-01 | B17: 45805 | C17: 7.75 | D17: 0.04266118434 | E17: 0.07083789046 | F17: 0.1767786022 | G17: 0.5001303346 | H17: 5.092365163 | I17: 3.764633169
A18: 2007-04-01 | B18: 48956 | C18: 8.92 | D18: 0.06652868005 | E18: 0.1406031032 | F18: 0.2433072823 | G18: 0.6407334379 | H18: 3.825937736 | I18: 1.59561426
A19: 2007-05-01 | B19: 52268 | C19: 8.33 | D19: 0.06546239361 | E19: -0.06843249041 | F19: 0.3087696759 | G19: 0.5723009475 | H19: 3.886155564 | I19: 2.894660862
A20: 2007-06-01 | B20: 54392 | C20: 7.57 | D20: 0.0398327551 | E20: -0.09567038873 | F20: 0.348602431 | G20: 0.4766305587 | H20: 5.221580304 | I20: 2.020979927
A21: 2007-07-01 | B21: 54183 | C21: 7.87 | D21: -0.003849878115 | E21: 0.03886499498 | F21: 0.3447525529 | G21: 0.5154955537 | H21: 6.063364531 | I21: 4.473706234
A22: 2007-08-01 | B22: 54637 | C22: 7.78 | D22: 0.008344102814 | E22: -0.01150172424 | F22: 0.3530966557 | G22: 0.5039938295 | H22: 6.082599492 | I22: 4.430534095
A23: 2007-09-01 | B23: 60465 | C23: 8.37 | D23: 0.1013533763 | E23: 0.07309754631 | F23: 0.454450032 | G23: 0.5770913758 | H23: 1.985036374 | I23: 3.699520009
A24: 2007-10-01 | B24: 65318 | C24: 8 | D24: 0.0772029639 | E24: -0.04521234282 | F24: 0.5316529959 | G24: 0.531879033 | H24: 3.224626209 | I24: 3.631395506
A25: 2007-11-01 | B25: 63006 | C25: 7.74 | D25: -0.03603768919 | E25: -0.03303985408 | F25: 0.4956153067 | G25: 0.4988391789 | H25: 5.08803497 | I25: 3.971868609
A26: 2007-12-01 | B26: 63886 | C26: 6.23 | D26: 0.0138702851 | E26: -0.2170253548 | F26: 0.5094855918 | G26: 0.2818138241 | H26: 6.021998092 | I26: 0.1198704218
A27: 2008-01-01 | B27: 59490 | C27: 7.04 | D27: -0.07129201385 | E27: 0.1222318374 | F27: 0.438193578 | G27: 0.4040456615 | H27: 3.179874338 | I27: 2.132715853
A28: 2008-02-01 | B28: 63489 | C28: 7.89 | D28: 0.06505843135 | E28: 0.1139879647 | F28: 0.5032520093 | G28: 0.5180336261 | H28: 3.908944387 | I28: 2.393355705
A29: 2008-03-01 | B29: 60968 | C29: 8.33 | D29: -0.04051752618 | E29: 0.05426732132 | F29: 0.4627344831 | G29: 0.5723009475 | H29: 4.870902888 | I29: 4.188794708
A30: 2008-04-01 | B30: 67868 | C30: 8.58 | D30: 0.1072155058 | E30: 0.02957045732 | F30: 0.5699499889 | G30: 0.6018714048 | H30: 1.72857719 | I30: 4.582952734
A31: 2008-05-01 | B31: 72593 | C31: 7.68 | D31: 0.06730385627 | E31: -0.1108143663 | F31: 0.6372538452 | G31: 0.4910570384 | H31: 3.782115522 | I31: 1.584472535
A32: 2008-06-01 | B32: 65018 | C32: 7.7 | D32: -0.1102043438 | E32: 0.0026007817 | F32: 0.5270495014 | G32: 0.4936578201 | H32: 1.35069074 | I32: 4.599529167
A33: 2008-07-01 | B33: 59505 | C33: 8.35 | D33: -0.088603812 | E33: 0.08104121 | F33: 0.4384456894 | G33: 0.5746990301 | H33: 2.269663084 | I33: 3.460336307
A34: 2008-08-01 | B34: 55680 | C34: 6.6 | D34: -0.06643932661 | E34: -0.2351918898 | F34: 0.3720063628 | G34: 0.3395071403 | H34: 3.451437684 | I34: 0.06611914264
A35: 2008-09-01 | B35: 49541 | C35: 5.45 | D35: -0.1168204065 | E35: -0.1914540404 | F35: 0.2551859563 | G35: 0.1480531 | H35: 1.127294966 | I35: 0.2567089716
A36: 2008-10-01 | B36: 37257 | C36: 5.72 | D36: -0.2849607629 | E36: 0.04835319672 | F36: -0.0297748066 | G36: 0.1964062967 | H36: =_xlfn.NORM.DIST(D36,AVERAGE(dvec_bovespa),_xlfn.STDEV.S(dvec_bovespa),$M$7) -> 0.000367000099 | I36: =_xlfn.NORM.DIST(E36,AVERAGE(dvec_totvs),_xlfn.STDEV.S(dvec_totvs),$M$7) -> 4.312378951
A37: 2008-11-01 | B37: 36596 | C37: 5.92 | D37: -0.01790090182 | E37: 0.0343676435 | F37: -0.04767570842 | G37: 0.2307739402 | H37: 5.786353273 | I37: 4.532872486
A38: 2008-12-01 | B38: 37550 | C38: 6.35 | D38: 0.02573443339 | E38: 0.07011836401 | F38: -0.02194127503 | G38: 0.3008923042 | H38: 5.753457792 | I38: 3.785055449
A39: 2009-01-01 | B39: 39301 | C39: 6.85 | D39: 0.04557658563 | E39: 0.07579383937 | F39: 0.02363531061 | G39: 0.3766861436 | H39: 4.952816727 | I39: 3.620011514
A40: 2009-02-01 | B40: 38183 | C40: 6.97 | D40: -0.02885957346 | E40: 0.0173665725 | F40: -0.005224262855 | G40: 0.3940527161 | H40: 5.403188383 | I40: 4.646947368
A41: 2009-03-01 | B41: 40926 | C41: 10.02 | D41: 0.06937516752 | E41: 0.3629678709 | F41: 0.06415090466 | G41: 0.7570205869 | H41: 3.664939973 | I41: 0.001257491017
A42: 2009-04-01 | B42: 47290 | C42: 11.85 | D42: 0.1445332988 | E42: 0.1677447719 | F42: 0.2086842034 | G42: 0.9247653589 | H42: 0.5934872999 | I42: 0.9557579378
A43: 2009-05-01 | B43: 53198 | C43: 11.44 | D43: 0.117721945 | E43: -0.03521188163 | F43: 0.3264061484 | G43: 0.8895534772 | H43: 1.322144039 | I43: 3.91462588
A44: 2009-06-01 | B44: 51465 | C44: 12.83 | D44: -0.03311883668 | E44: 0.1146701927 | F44: 0.2932873117 | G44: 1.00422367 | H44: 5.221489629 | I44: 2.371457863
A45: 2009-07-01 | B45: 54766 | C45: 14.01 | D45: 0.06216759847 | E45: 0.08798518172 | F45: 0.3554549102 | G45: 1.092208852 | H45: 4.071436719 | I45: 3.241128797
A46: 2009-08-01 | B46: 56489 | C46: 14.88 | D46: 0.03097636549 | E46: 0.06024666906 | F46: 0.3864312757 | G46: 1.152455521 | H46: 5.579852742 | I46: 4.047858063
A47: 2009-09-01 | B47: 61518 | C47: 16.42 | D47: 0.08528388598 | E47: 0.09848207462 | F47: 0.4717151617 | G47: 1.250937595 | H47: 2.783345225 | I47: 2.899575205
A48: 2009-10-01 | B48: 61546 | C48: 17.82 | D48: 0.0004550477879 | E48: 0.08182131802 | F48: 0.4721702095 | G48: 1.332758913 | H48: 6.094297571 | I48: 3.436109993
A49: 2009-11-01 | B49: 67044 | C49: 19.86 | D49: 0.08556425756 | E49: 0.1083862366 | F49: 0.557734467 | G49: 1.44114515 | H49: 2.768411092 | I49: 2.574815521
A50: 2009-12-01 | B50: 68588 | C50: 19.86 | D50: 0.02276847205 | E50: 0 | F50: 0.5805029391 | G50: 1.44114515 | H50: 5.837430511 | I50: 4.57717114
A51: 2010-01-01 | B51: 65402 | C51: 19.83 | D51: -0.04756475328 | E51: -0.001511716085 | F51: 0.5329381858 | G51: 1.439633434 | H51: 4.504944849 | I51: 4.562299487
A52: 2010-02-01 | B52: 66503 | C52: 18.73 | D52: 0.01669422039 | E52: -0.05706942608 | F52: 0.5496324062 | G52: 1.382564008 | H52: 5.974769861 | I52: 3.264077023
A53: 2010-03-01 | B53: 70372 | C53: 20.64 | D53: 0.05654839735 | E53: 0.09710442416 | F53: 0.6061808035 | G53: 1.479668432 | H53: 4.38229934 | I53: 2.944774003
A54: 2010-04-01 | B54: 67530 | C54: 22.03 | D54: -0.04122351319 | E54: 0.0651742202 | F54: 0.5649572904 | G54: 1.544842652 | H54: 4.835469975 | I54: 3.92095216
A55: 2010-05-01 | B55: 63047 | C55: 23.93 | D55: -0.06869146359 | E55: 0.08272774111 | F55: 0.4962658268 | G55: 1.627570393 | H55: 3.324910931 | I55: 3.407820223
A56: 2010-06-01 | B56: 60936 | C56: 24.69 | D56: -0.03405634692 | E56: 0.03126540144 | F56: 0.4622094798 | G56: 1.658835795 | H56: 5.179372547 | I56: 4.566825342
A57: 2010-07-01 | B57: 67515 | C57: 23.76 | D57: 0.1025256623 | E57: -0.03839480886 | F57: 0.5647351422 | G57: 1.620440986 | H57: 1.932115609 | I57: 3.827796615
A58: 2010-08-01 | B58: 65145 | C58: 23.96 | D58: -0.03573424076 | E58: 0.008382278753 | F58: 0.5290009014 | G58: 1.628823265 | H58: 5.102222125 | I58: 4.634350781
A59: 2010-09-01 | B59: 69430 | C59: 23.95 | D59: 0.06370349611 | E59: -0.0004174493903 | F59: 0.5927043975 | G59: 1.628405815 | H59: 3.985250483 | I59: 4.57320142
A60: 2010-10-01 | B60: 70673 | C60: 28.94 | D60: 0.01774455386 | E60: 0.1892563973 | F60: 0.6104489514 | G60: 1.817662212 | H60: 5.954465014 | I60: 0.5930355829
A61: 2010-11-01 | B61: 67705 | C61: 31.4 | D61: -0.04290357219 | E61: 0.08158317171 | F61: 0.5675453792 | G61: 1.899245384 | H61: 4.749955626 | I61: 3.443517776
A62: 2010-12-01 | B62: 69305 | C62: 31.15 | D62: 0.02335702123 | E62: -0.007993647681 | F62: 0.5909024004 | G62: 1.891251737 | H62: 5.821622761 | I62: 4.483280844
A63: 2011-01-01 | B63: 66575 | C63: 29.86 | D63: -0.04018792197 | E63: -0.04229445312 | F63: 0.5507144785 | G63: 1.848957283 | H63: 4.88733921 | I63: 3.717060341
A64: 2011-02-01 | B64: 67383 | C64: 28.93 | D64: 0.01206362888 | E64: -0.03164067312 | F64: 0.5627781073 | G64: 1.81731661 | H64: 6.046491998 | I64: 4.007826104
A65: 2011-03-01 | B65: 68587 | C65: 28.89 | D65: 0.01771025182 | E65: -0.00138360451 | F65: 0.5804883592 | G65: 1.815933006 | H65: 5.955151308 | I65: 4.563612837
A66: 2011-04-01 | B66: 66133 | C66: 27.65 | D66: -0.03643514655 | E66: -0.04386978651 | F66: 0.5440532126 | G66: 1.772063219 | H66: 5.069347157 | I66: 3.671089986
A67: 2011-05-01 | B67: 64620 | C67: 29.03 | D67: -0.02314390545 | E67: 0.04870405007 | F67: 0.5209093072 | G67: 1.820767269 | H67: 5.619410476 | I67: 4.305517146
A68: 2011-06-01 | B68: 62404 | C68: 26.54 | D68: -0.03489458451 | E68: -0.08967674913 | F68: 0.4860147226 | G68: 1.73109052 | H68: =_xlfn.NORM.DIST(D68,AVERAGE(dvec_bovespa),_xlfn.STDEV.S(dvec_bovespa),$M$7) -> 5.141108239 | I68: =_xlfn.NORM.DIST(E68,AVERAGE(dvec_totvs),_xlfn.STDEV.S(dvec_totvs),$M$7) -> 2.206233132
A69: 2011-07-01 | B69: 58823 | C69: 24.52 | D69: -0.059096441 | E69: -0.07916391784 | F69: 0.4269182816 | G69: 1.651926602 | H69: 3.866398983 | I69: 2.542985853
A70: 2011-08-01 | B70: 56495 | C70: 26.36 | D70: =IF(ISERR(LN(B70)-LN(B69)),D69,LN(B70)-LN(B69)) -> -0.04038079622 | E70: =IF(ISERR(LN(C70)-LN(C69)),E69,LN(C70)-LN(C69)) -> 0.07235859857 | F70: =D70+F69 -> 0.3865374854 | G70: =E70+G69 -> 1.724285201 | H70: 4.877729498 | I70: 3.720972139
A71: 2011-09-01 | B71: 52324 | C71: 29.49 | D71: -0.07669698184 | E71: 0.1122035132 | F71: 0.3098405036 | G71: 1.836488714 | H71: 2.883728691 | I71: 2.450860633
A72: 2011-10-01 | B72: 58338 | C72: 26.27 | D72: 0.1087985252 | E72: -0.1156236191 | F72: 0.4186390288 | G72: 1.720865095 | H72: 1.662900824 | I72: 1.457121351
A73: 2011-11-01 | B73: 56875 | C73: 30.05 | D73: -0.02539780478 | E73: 0.1344350573 | F73: 0.393241224 | G73: 1.855300152 | H73: 5.538181167 | I73: 1.767879166
A74: 2011-12-01 | B74: 56754 | C74: 30.86 | D74: -0.002129738812 | E74: 0.02659818595 | F74: 0.3911114852 | G74: 1.881898338 | H74: 6.07886472 | I74: 4.607030815
A75: 2012-01-01 | B75: 63072 | C75: 27.88 | D75: 0.1055507925 | E75: -0.101551261 | F75: 0.4966622777 | G75: 1.780347077 | H75: 1.79930523 | I75: 1.845569288
A76: 2012-02-01 | B76: 65812 | C76: 29.58 | D76: 0.04252526155 | E76: 0.05918887139 | F76: 0.5391875393 | G76: 1.839535949 | H76: 5.098719086 | I76: 4.073880615
A77: 2012-03-01 | B77: 64511 | C77: 31.66 | D77: -0.01996644063 | E77: 0.06795559717 | F77: 0.5192210987 | G77: 1.907491546 | H77: 5.724390952 | I77: 3.845482823
A78: 2012-04-01 | B78: 61820 | C78: 34.9 | D78: -0.04260881519 | E78: 0.09743277476 | F78: 0.4766122835 | G78: 2.00492432 | H78: 4.765075958 | I78: 2.934006358
A79: 2012-05-01 | B79: 54490 | C79: 34.29 | D79: -0.1262097381 | E79: -0.01763306273 | F79: 0.3504025454 | G79: 1.987291258 | H79: 0.8569910102 | I79: 4.322452431
A80: 2012-06-01 | B80: 54355 | C80: 36.36 | D80: -0.002480592939 | E80: 0.05861550283 | F80: 0.3479219524 | G80: 2.045906761 | H80: 6.076041214 | I80: 4.087796172
A81: 2012-07-01 | B81: 56097 | C81: 35.51 | D81: 0.03154572951 | E81: -0.02365492235 | F81: 0.3794676819 | G81: 2.022251838 | H81: 5.559163658 | I81: 4.19795873
A82: 2012-08-01 | B82: 57061 | C82: 37.06 | D82: 0.01703853588 | E82: 0.0427238739 | F82: 0.3965062178 | G82: 2.064975712 | H82: 5.968275619 | I82: 4.413882697
A83: 2012-09-01 | B83: 59176 | C83: 39.56 | D83: 0.03639518324 | E83: 0.0652802859 | F83: 0.432901401 | G83: 2.130255998 | H83: 5.369507049 | I83: 3.91812269
A84: 2012-10-01 | B84: 57068 | C84: 38.8 | D84: -0.03627251503 | E84: -0.01939826013 | F84: 0.396628886 | G84: 2.110857738 | H84: 5.077008189 | I84: 4.287768314
A85: 2012-11-01 | B85: 57475 | C85: 37.57 | D85: 0.007106531397 | E85: -0.03221438704 | F85: 0.4037354174 | G85: 2.078643351 | H85: 6.090291396 | I85: 3.993171426
A86: 2012-12-01 | B86: 60952 | C86: 37.94 | D86: 0.05873659852 | E86: 0.009800104921 | F86: 0.4624720159 | G86: 2.088443456 | H86: 4.26225795 | I86: 4.639714226
A87: 2013-01-01 | B87: 59761 | C87: 40.74 | D87: -0.01973339489 | E87: 0.07120444629 | F87: 0.442738621 | G87: 2.159647902 | H87: 5.731634707 | I87: 3.754170174
A88: 2013-02-01 | B88: 57424 | C88: 41.1 | D88: -0.03989093988 | E88: 0.008797710704 | F88: 0.4028476812 | G88: 2.168445613 | H88: 4.902089616 | I88: 4.636052721
A89: 2013-03-01 | B89: 56352 | C89: 39.51 | D89: -0.01884460209 | E89: -0.03945431708 | F89: 0.3840030791 | G89: 2.128991296 | H89: 5.758673951 | I89: 3.798163762
A90: 2013-04-01 | B90: 55910 | C90: 35.91 | D90: -0.007874477275 | E90: -0.09553799619 | F90: 0.3761286018 | G90: 2.0334533 | H90: 6.010983416 | I90: 2.025005603
A91: 2013-05-01 | B91: 53506 | C91: 35.86 | D91: -0.04394945789 | E91: -0.001393340061 | F91: 0.3321791439 | G91: 2.032059959 | H91: 4.695920449 | I91: 4.563513375
A92: 2013-06-01 | B92: 47457 | C92: 33.24 | D92: -0.1199697593 | E92: -0.07586849819 | F92: 0.2122093846 | G92: 1.956191461 | H92: 1.030623486 | I92: 2.650579823
A93: 2013-07-01 | B93: 48234 | C93: 34.2 | D93: 0.01624012869 | E93: 0.02847167408 | F93: 0.2284495133 | G93: 1.984663135 | H93: 5.983091829 | I93: 4.592480927
A94: 2013-08-01 | B94: 50008 | C94: 35.46 | D94: 0.03611882606 | E94: 0.03617965658 | F94: 0.2645683394 | G94: 2.020842792 | H94: 5.380934066 | I94: 4.510430147
A95: 2013-09-01 | B95: 52338 | C95: 35.62 | D95: 0.04553969205 | E95: 0.004501977215 | F95: 0.3101080314 | G95: 2.025344769 | H95: 4.954620073 | I95: 4.613260815
A96: 2013-10-01 | B96: 54256 | C96: 36.08 | D96: 0.0359909007 | E96: 0.01283141733 | F96: 0.3460989321 | G96: 2.038176186 | H96: 5.386199279 | I96: 4.646945519
A97: 2013-11-01 | B97: 52482 | C97: 35.01 | D97: -0.03324333172 | E97: -0.03010496023 | F97: 0.3128556004 | G97: 2.008071226 | H97: 5.215938825 | I97: 4.046428851
A98: 2013-12-01 | B98: 51507 | C98: 35.11 | D98: -0.0187525329 | E98: 0.002852255214 | F98: 0.2941030675 | G98: 2.010923481 | H98: 5.761421373 | I98: 4.601472714
A99: 2014-01-01 | B99: 47639 | C99: 30.13 | D99: -0.07806596726 | E99: -0.152964637 | F99: 0.2160371003 | G99: 1.857958844 | H99: 2.810155097 | I99: 0.6832068166
A100: 2014-02-01 | B100: 47094 | C100: 30.74 | D100: -0.01150614913 | E100: 0.02004338497 | F100: 0.2045309511 | G100: 1.878002229 | H100: =_xlfn.NORM.DIST(D100,AVERAGE(dvec_bovespa),_xlfn.STDEV.S(dvec_bovespa),$M$7) -> 5.944748823 | I100: =_xlfn.NORM.DIST(E100,AVERAGE(dvec_totvs),_xlfn.STDEV.S(dvec_totvs),$M$7) -> 4.640862299
A101: 2014-03-01 | B101: 50415 | C101: 34.57 | D101: 0.06814314547 | E101: 0.1174215158 | F101: 0.2726740966 | G101: 1.995423745 | H101: 3.734642958 | I101: 2.283696638
A102: 2014-04-01 | B102: 51627 | C102: 35.39 | D102: 0.02375604161 | E102: 0.02344304042 | F102: 0.2964301382 | G102: 2.018866786 | H102: 5.81066219 | I102: 4.626652502
A103: 2014-05-01 | B103: 51239 | C103: 38.11 | D103: -0.007543830616 | E103: 0.07404742053 | F103: 0.2888863076 | G103: 2.092914206 | H103: 6.016128749 | I103: 3.671726231
A104: 2014-06-01 | B104: 53168 | C104: 36.9 | D104: 0.03695575078 | E104: -0.03226516384 | F104: 0.3258420584 | G104: 2.060649042 | H104: 5.34610954 | I104: 3.991868398
A105: 2014-07-01 | B105: 55829 | C105: 38.05 | D105: 0.04883673603 | E105: 0.03068953326 | F105: 0.3746787944 | G105: 2.091338576 | H105: 4.790002877 | I105: 4.572498391
A106: 2014-08-01 | B106: 61288 | C106: 40.34 | D106: 0.09329061757 | E106: 0.05844244822 | F106: 0.467969412 | G106: 2.149781024 | H106: 2.36974402 | I106: 4.091969626
A107: 2014-09-01 | B107: 54116 | C107: 36.27 | D107: -0.1244541745 | E107: -0.1063525792 | F107: 0.3435152375 | G107: 2.043428445 | H107: 0.9034791058 | I107: 1.70775296
A108: 2014-10-01 | B108: 54629 | C108: 35.19 | D108: 0.009434986538 | E108: -0.03022900196 | F108: 0.352950224 | G108: 2.013199443 | H108: 6.07402334 | I108: 4.043345161
A109: 2014-11-01 | B109: 54664 | C109: 34.6 | D109: 0.000640480199 | E109: -0.01690826927 | F109: 0.3535907042 | G109: 1.996291173 | H109: 6.095040176 | I109: 4.336243617
A110: 2014-12-01 | B110: 50007 | C110: 34.22 | D110: -0.08904236185 | E110: -0.0110434136 | F110: 0.2645483424 | G110: 1.98524776 | H110: 2.248310322 | I110: 4.437810844
A111: 2015-01-01 | B111: 46908 | C111: 32.82 | D111: -0.06397475903 | E111: -0.0417721828 | F111: 0.2005735834 | G111: 1.943475577 | H111: 3.590540016 | I111: 3.732150024
A112: 2015-02-01 | B112: 51583 | C112: 33.54 | D112: 0.09500392424 | E112: 0.02170067073 | F112: 0.2955775076 | G112: 1.965176248 | H112: 2.285103131 | I112: 4.634838258
A113: 2015-03-01 | B113: 51150 | C113: 36.5 | D113: -0.008429668443 | E113: 0.08457350419 | F113: 0.2871478392 | G113: 2.049749752 | H113: 6.002008636 | I113: 3.349775921
A114: 2015-04-01 | B114: 56229 | C114: 34.81 | D114: 0.09467014565 | E114: -0.04740755877 | F114: 0.3818179848 | G114: 2.002342193 | H114: 2.301475824 | I114: 3.565533198
A115: 2015-05-01 | B115: 52760 | C115: 37.3 | D115: -0.0636793102 | E115: 0.06908862483 | F115: 0.3181386746 | G115: 2.071430818 | H115: 3.607243443 | I115: 3.814008936
A116: 2015-06-01 | B116: 53081 | C116: 39.13 | D116: 0.006065720925 | E116: 0.04789610957 | F116: 0.3242043955 | G116: 2.119326928 | H116: 6.095077882 | I116: 4.321226489
A117: 2015-07-01 | B117: 50865 | C117: 39 | D117: =IF(ISERR(LN(B117)-LN(B116)),D116,LN(B117)-LN(B116)) -> -0.04264398453 | E117: =IF(ISERR(LN(C117)-LN(C116)),E116,LN(C117)-LN(C116)) -> -0.003327790093 | F117: =D117+F116 -> 0.281560411 | G117: =E117+G116 -> 2.115999137 | H117: =_xlfn.NORM.DIST(D117,AVERAGE(dvec_bovespa),_xlfn.STDEV.S(dvec_bovespa),$M$7) -> 4.763274413 | I117: =_xlfn.NORM.DIST(E117,AVERAGE(dvec_totvs),_xlfn.STDEV.S(dvec_totvs),$M$7) -> 4.542633439
A118: 2015-08-01 | B118: 46626 | C118: 35.06 | D118: -0.08701673879 | E118: -0.1065007666 | F118: 0.1945436722 | G118: 2.009498371 | H118: 2.34776327 | I118: 1.703582401
A119: 2015-09-01 | B119: 45059 | C119: 33.95 | D119: =IF(ISERR(LN(B119)-LN(B118)),D118,LN(B119)-LN(B118)) -> -0.03418558333 | E119: =IF(ISERR(LN(C119)-LN(C118)),E118,LN(C119)-LN(C118)) -> -0.03217202549 | F119: =D119+F118 -> 0.1603580889 | G119: =E119+G118 -> 1.977326345 | H119: =_xlfn.NORM.DIST(D119,AVERAGE(dvec_bovespa),_xlfn.STDEV.S(dvec_bovespa),$M$7) -> 5.173509999 | I119: =_xlfn.NORM.DIST(E119,AVERAGE(dvec_totvs),_xlfn.STDEV.S(dvec_totvs),$M$7) -> 3.994257758
A120: 2015-10-01 | B120: 45869 | C120: 33.26 | D120: 0.0178167655 | E120: -0.02053338024 | F120: 0.1781748544 | G120: 1.956792965 | H120: 5.953015154 | I120: 4.264658412
A121: 2015-11-01 | B121: 45120 | C121: 31.03 | D121: -0.01646390044 | E121: -0.0694009953 | F121: 0.161710954 | G121: 1.88739197 | H121: 5.826426379 | I121: 2.86285662
A122: 2015-12-01 | B122: 43350 | C122: 32.4 | D122: -0.04001890396 | E122: 0.04320394434 | F122: 0.12169205 | G122: 1.930595914 | H122: 4.895740868 | I122: 4.405873344
A123: 2016-01-01 | B123: 40406 | C123: 31.2 | D123: -0.07032841444 | E123: -0.03774032798 | F123: 0.05136363556 | G123: 1.892855586 | H123: 3.233459044 | I123: 3.845923969
A124: 2016-02-01 | B124: 42794 | C124: 30.79 | D124: =IF(ISERR(LN(B124)-LN(B123)),D123,LN(B124)-LN(B123)) -> 0.05741961705 | E124: =IF(ISERR(LN(C124)-LN(C123)),E123,LN(C124)-LN(C123)) -> -0.01322813288 | F124: =D124+F123 -> 0.1087832526 | G124: =E124+G123 -> 1.879627453 | H124: =_xlfn.NORM.DIST(D124,AVERAGE(dvec_bovespa),_xlfn.STDEV.S(dvec_bovespa),$M$7) -> 4.334687133 | I124: =_xlfn.NORM.DIST(E124,AVERAGE(dvec_totvs),_xlfn.STDEV.S(dvec_totvs),$M$7) -> 4.402102993
A125: 2016-03-01 | B125: 50055 | C125: 26.59 | D125: 0.156724495 | E125: -0.1466547567 | F125: 0.2655077476 | G125: 1.732972697 | H125: 0.3900255061 | I125: 0.7868825107
A126: 2016-04-01 | B126: 53911 | C126: 27.96 | D126: 0.07421213785 | E126: 0.05023971211 | F126: 0.3397198855 | G126: 1.783212409 | H126: 3.391974921 | I126: 4.274770914
A127: 2016-05-01 | B127: 48472 | C127: 29.37 | D127: -0.1063482271 | E127: 0.04919882784 | F127: 0.2333716584 | G127: 1.832411236 | H127: 1.493720547 | I127: 4.295737077
A128: 2016-06-01 | B128: 51527 | C128: 30.28 | D128: 0.06111963049 | E128: 0.03051368336 | F128: 0.2944912889 | G128: 1.86292492 | H128: 4.130002668 | I128: 4.574191096
A129: 2016-07-01 | B129: 57308 | C129: 32.62 | D129: 0.1063342879 | E129: 0.07443816862 | F129: 0.4008255768 | G129: 1.937363088 | H129: 1.76580624 | I129: 3.660223291
A130: 2016-08-01 | B130: 57901 | C130: 30 | D130: 0.01029442556 | E130: -0.08372821553 | F130: 0.4111200024 | G130: 1.853634873 | H130: 6.066086397 | I130: 2.395298963
A131: 2016-09-01 | B131: 58994 | C131: 32.47 | D131: 0.01870108823 | E131: 0.07911920445 | F131: 0.4298210906 | G131: 1.932754077 | H131: 5.934701469 | I131: 3.519514578

Sheet Estat_descritiva
C3: -0.1759445542 | D3: -0.2266926175 | G3: Distribuição de frequência | J3: Distribuição de frequência
C4: 1.398573661 | D4: 1.707553094 | G4: interval | H4: freq | I4: %freq | J4: interval | K4: %cum freq
C5: -0.821601179 | D5: -0.9596488614 | F5: ="<"&G5 -> <-0,16 | G5: -0.16 | H5: =FREQUENCY(dvec_totvs,G5:G14) -> 4 | I5: =H5/$H$17 -> 0.03125 | J5: -0.16 | K5: =I5 -> 0.03125
C6: -2.52693142 | D6: -2.044180969 | F6: =">="&G5&" e "&"<"&G6 -> >=-0,16 e <-0,12 | G6: -0.12 | H6: 2 | I6: =H6/$H$17 -> 0.015625 | J6: -0.12 | K6: =I6+K5 -> 0.046875
C7: -0.1479679883 | D7: -0.1867561211 | F7: =">="&G6&" e "&"<"&G7 -> >=-0,12 e <-0,08 | G7: -0.08 | H7: 9 | I7: 0.0703125 | J7: -0.08 | K7: =I7+K6 -> 0.1171875
C8: 2.351297082 | D8: 2.23616247 | F8: >=-0,08 e <-0,04 | G8: -0.04 | H8: 12 | I8: 0.09375 | J8: -0.04 | K8: =I8+K7 -> 0.2109375
C9: 0.2654807339 | D9: 0.2266926175 | F9: >=-0,04 e <0 | G9: 0 | H9: 27 | I9: 0.2109375 | J9: 0 | K9: =I9+K8 -> 0.421875
C10: 0.9385692021 | D10: 1.091952907 | F10: >=0 e <0,04 | G10: 0.04 | H10: 23 | I10: 0.1796875 | J10: 0.04 | K10: 0.6015625
C11: 1.143884836 | D11: 1.336804225 | F11: >=0,04 e <0,08 | G11: 0.08 | H11: 27 | I11: 0.2109375 | J11: 0.08 | K11: 0.8125
C12: -0.9385122925 | D12: -1.023560553 | F12: >=0,08 e <0,12 | G12: 0.12 | H12: 16 | I12: 0.125 | J12: 0.12 | K12: 0.9375
C13: 0.2115763787 | D13: 0.1669029731 | F13: >=0,12 e <0,16 | G13: 0.16 | H13: 4 | I13: 0.03125 | J13: 0.16 | K13: 0.96875
C14: 0.3040780431 | D14: 0.2669941254 | F14: >=0,16 e <0,2 | G14: 0.2 | H14: 2 | I14: 0.015625 | J14: 0.2 | K14: 0.984375
C15: 0.7124343424 | D15: 0.8423177173 | F15: =">="&G14 -> >=0,2 | H15: 2 | I15: 0.015625 | K15: 1
C16: 0.6494751274 | D16: 0.6607511271
C17: 1.462395717 | D17: 1.798329823 | G17: Total | H17: =SUM(H5:H15) -> 128
C18: -0.9733359514 | D18: -1.057138587
C19: -1.290718319 | D19: -1.336804225 | G19: Quantis | H19: via Excel Fns.
C20: 0.276919465 | D20: 0.246793261 | G20: quart no. | H20: Q points | I20: Q %
C21: -0.3099653374 | D21: -0.3908522745 | G21: 0 | H21: =QUARTILE(dvec_totvs,G21) -> -0.2351918898 | I21: 0
C22: 0.6758051664 | D22: 0.7355767699 | G22: 1 | H22: =QUARTILE(dvec_totvs,G22) -> -0.0324588364 | I22: 0.25
C23: -0.7027693562 | D23: -0.8994349077 | G23: 2 | H23: =QUARTILE(dvec_totvs,G23) -> 0.02087202785 | I23: 0.5
C24: -0.560932668 | D24: -0.6852639311 | G24: 3 | H24: =QUARTILE(dvec_totvs,G24) -> 0.07092952942 | I24: 0.75
C25: -2.70477479 | D25: -2.23616247 | G25: 4 | H25: =QUARTILE(dvec_totvs,G25) -> 0.3629678709 | I25: 1
C26: 1.248329427 | D26: 1.559371904
C27: 1.152269893 | D27: 1.386179801
C28: 0.4563909769 | D28: 0.4334094328
C29: 0.1686173365 | D29: 0.08806556972
C30: -1.467179491 | D30: -1.559371904
C31: -0.145639637 | D31: -0.1669029731
C32: 0.7683665952 | D32: 0.8994349077
C33: -2.916455509 | D33: -2.584692474
C34: -2.406811849 | D34: -1.906925663
C35: 0.3874782126 | D35: 0.3489917322
C36: 0.2245152728 | D36: 0.1867561211
C37: 0.6410910368 | D37: 0.6366290907
C38: 0.7072230042 | D38: 0.8147687735
C39: 0.02641481379 | D39: -0.02932149074
C40: 4.053442042 | D40: 2.584692474
C41: 1.778656795 | D41: 1.906925663
C42: -0.5862416414 | D42: -0.7101956049
C43: 1.160219373 | D43: 1.439187289
C44: 0.8492793791 | D44: 1.057138587
C45: 0.5260637364 | D45: 0.5210396059
C46: 0.9715916323 | D46: 1.20534492
C47: 0.7774565964 | D47: 0.9596488614
C48: 1.086997246 | D48: 1.246786932
C49: -0.1759445542 | D49: -0.2266926175
C50: -0.1935594239 | D50: -0.3077341915
C51: -0.8409308658 | D51: -0.9910986198
C52: 0.9555389266 | D52: 1.128143645
C53: 0.5834807158 | D53: 0.543559495
C54: 0.7880184504 | D54: 0.9910986198
C55: 0.1883672221 | D55: 0.1471153988
C56: -0.6233298546 | D56: -0.7614409066
C57: -0.07827228 | D57: -0.1077046012
C58: -0.1808087722 | D58: -0.246793261
C59: 2.029315289 | D59: 2.044180969
C60: 0.7746816599 | D60: 0.9291207526
C61: -0.2690884081 | D61: -0.3489917322
C62: -0.6687694224 | D62: -0.8423177173
C63: -0.544629084 | D63: -0.5894557978
C64: -0.1920666378 | D64: -0.2669941254
C65: -0.6871255758 | D65: -0.870521281
C66: 0.391566438 | D66: 0.369840986
C67: -1.220879027 | D67: -1.246786932
C68: -1.098381056 | D68: -1.16587567
C69: 0.6671947743 | D69: 0.7101956049
C70: 1.131477047 | D70: 1.29048853
C71: -1.52321803 | D71: -1.628996121
C72: 1.390524202 | D72: 1.628996121
C73: 0.1339837347 | D73: 0.04888160901
C74: -1.359243619 | D74: -1.386179801
C75: 0.5137380304 | D75: 0.4987809304
C76: 0.6158899713 | D76: 0.5894557978
C77: 0.9593649447 | D77: 1.16587567
C78: -0.3814091288 | D78: -0.4549811403
C79: 0.5070570058 | D79: 0.4767666938
C80: -0.4515772467 | D80: -0.5210396059
C81: 0.3218840255 | D81: 0.2873045458
C82: 0.5847166181 | D82: 0.5663585038
C83: -0.401977622 | D83: -0.4767666938
C84: -0.5513141329 | D84: -0.6366290907
C85: -0.0617514376 | D85: -0.06846044899
C86: 0.6537463218 | D86: 0.6852639311
C87: -0.07343156967 | D87: -0.08806556972
C88: -0.6356754924 | D88: -0.7878247528
C89: -1.28917565 | D89: -1.29048853
C90: -0.1921800787 | D90: -0.2873045458
C91: -1.059982055 | D91: -1.128143645
C92: 0.155814057 | D92: 0.06846044899
C93: 0.2456292733 | D93: 0.2066831598
C94: -0.1234864618 | D94: -0.1273852656
C95: -0.0264298758 | D95: -0.04888160901
C96: -0.5267345978 | D96: -0.543559495
C97: -0.1427094088 | D97: -0.1471153988
C98: -1.958324311 | D98: -1.798329823
C99: 0.05760565929 | D99: -0.009772585471
C100: 1.192278435 | D100: 1.496578669
C101: 0.09721924046 | D101: 0.02932149074
C102: 0.6868733231 | D102: 0.7614409066
C103: -0.551905796 | D103: -0.6607511271
C104: 0.1816570713 | D104: 0.1273852656
C105: 0.5050405329 | D105: 0.4549811403
C106: -1.415189703 | D106: -1.439187289
C107: -0.5281799611 | D107: -0.5663585038
C108: -0.3729636657 | D108: -0.4334094328
C109: -0.3046249945 | D109: -0.369840986
C110: -0.6626838064 | D110: -0.8147687735
C111: 0.07691674097 | D111: 0.009772585471
C112: 0.8095257139 | D112: 1.023560553
C113: -0.7283485262 | D113: -0.9291207526
C114: 0.6290922748 | D114: 0.612871947
C115: 0.3821521262 | D115: 0.328293103
C116: -0.2147207433 | D116: -0.328293103
C117: -1.416916417 | D117: -1.496578669
C118: -0.5508205261 | D118: -0.612871947
C119: -0.4152043073 | D119: -0.4987809304
C120: -0.9846211971 | D120: -1.091952907
C121: 0.3274779186 | D121: 0.3077341915
C122: -0.6157036902 | D122: -0.7355767699
C123: -0.330081855 | D123: -0.4120375636
C124: -1.884800108 | D124: -1.707553094
C125: 0.4094603316 | D125: 0.4120375636
C126: 0.3973317045 | D126: 0.3908522745
C127: 0.1796080271 | D127: 0.1077046012
C128: 0.6914264114 | D128: 0.7878247528
C129: -1.151565321 | D129: -1.20534492
C130: 0.7459709366 | D130: 0.870521281

Sheet Beta
S1: =B5 -> Ação (TOTS3.SA)
A2: Estimando o coeficiente Beta com o uso de Retornos logarítimicos | H2: Risk-free asset return | J2: 0.04 | K2: a year | L2: Modo 2 - Output from Linest
J3: =(1+J2)^(1/12)-1 -> 0.003273739782 | K3: a month
L4: Beta | M4: =LINEST(Retornos_Mensais!E4:E131,Retornos_Mensais!D4:D131,TRUE,TRUE) -> 0.2031924783 | N4: 0.01441732551 | O4: Alpha | S4: Teste Z | T4: Teste N
A5: Mês | B5: ="Ação "&"("&Retornos_Mensais!C3 &")" -> Ação (TOTS3.SA) | C5: ="Índice ("&Retornos_Mensais!B3&")" -> Índice (^BVSP) | E5: Previstos (fitted) | F5: Resíduos | H5: Modo 1 - Funções de regressão do Excel | L5: Beta (Erro padrão) | M5: 0.1154988216 | N5: 0.007533715846 | O5: Alpha (SE) | R5: =A5 -> Mês
L6: =H9 -> R-Quadrado | M6: 0.02397456515 | N6: 0.08512124262 | O6: STEYX
A7: 1 | B7: =Retornos_Mensais!E4-$J$3 -> -0.003273739782 | C7: =Retornos_Mensais!D4-$J$3 -> -0.003273739782 | E7: =$I$7+$I$8*B7 -> 0.01114358572 | F7: =B7-E7 -> -0.01441732551 | H7: INTERCEPTO | I7: =INTERCEPT(B7:B134,C7:C134) -> 0.01180878502 | L7: F | M7: 3.094996402 | N7: 126 | O7: N-2 | R7: 1 | S7: =ZNplotmat(B7:B134) -> -0.1759445542 | T7: -0.2266926175
A8: 2 | B8: =Retornos_Mensais!E5-$J$3 -> 0.1318521257 | C8: =Retornos_Mensais!D5-$J$3 -> -0.01456618964 | E8: =$I$7+$I$8*C8 -> 0.008849044851 | F8: =B8-E8 -> 0.1230030808 | H8: INCLINAÇÃO | I8: =SLOPE(B7:B134,C7:C134) -> 0.2031924783 | L8: Regression SS | M8: 0.02242518623 | N8: 0.9129488692 | O8: Residual SS | R8: 2 | S8: 1.398573661 | T8: 1.707553094
A9: 3 | B9: =Retornos_Mensais!E6-$J$3 -> -0.05868428339 | C9: =Retornos_Mensais!D6-$J$3 -> 0.05831758059 | E9: =$I$7+$I$8*C9 -> 0.02365847875 | F9: =B9-E9 -> -0.08234276214 | H9: R-Quadrado | I9: =RSQ(B7:B134,C7:C134) -> 0.02397456515 | R9: 3 | S9: -0.821601179 | T9: -0.9596488614
A10: 4 | B10: =Retornos_Mensais!E7-$J$3 -> -0.2050364961 | C10: =Retornos_Mensais!D7-$J$3 -> -0.1030534227 | E10: =$I$7+$I$8*C10 -> -0.009130895333 | F10: =B10-E10 -> -0.1959056007 | H10: ERRO-PADRÃO | I10: =STEYX(B7:B134,C7:C134) -> 0.08512124262 | R10: 4 | S10: -2.52693142 | T10: -2.044180969
A11: 5 | B11: =Retornos_Mensais!E8-$J$3 -> -0.0008727782447 | C11: =Retornos_Mensais!D8-$J$3 -> -0.000512704144 | E11: =$I$7+$I$8*C11 -> 0.0117046074 | F11: =B11-E11 -> -0.01257738564 | K11: Modo 3 - Resultado da ferramenta do Excel Dados / Análise de Dados / Regressão) | N11: Output from Linest | R11: 5 | S11: -0.1479679883 | T11: -0.1867561211
A12: 6 | B12: =Retornos_Mensais!E9-$J$3 -> 0.2136152807 | C12: =Retornos_Mensais!D9-$J$3 -> 0.008828215048 | E12: =$I$7+$I$8*C12 -> 0.01360261192 | F12: =B12-E12 -> 0.2000126688 | H12: Alpha | I12: =INDEX(LINEST(B7:B134,C7:C134,TRUE,TRUE),1,2) -> 0.01180878502 | R12: 6 | S12: 2.351297082 | T12: 2.23616247
A13: 7 | B13: =Retornos_Mensais!E10-$J$3 -> 0.03460957812 | C13: =Retornos_Mensais!D10-$J$3 -> -0.0263278648 | E13: =$I$7+$I$8*C13 -> 0.006459160927 | F13: =B13-E13 -> 0.02815041719 | H13: Alpha (Erro-Padrão) | I13: =INDEX(LINEST(B7:B134,C7:C134,TRUE,TRUE),2,2) -> 0.007523732276 | K13: RESUMO DOS RESULTADOS | R13: 7 | S13: 0.2654807339 | T13: 0.2266926175
A14: 8 | B14: =Retornos_Mensais!E11-$J$3 -> 0.09237433494 | C14: =Retornos_Mensais!D11-$J$3 -> 0.0026975772 | E14: =$I$7+$I$8*C14 -> 0.01235691242 | F14: =B14-E14 -> 0.08001742252 | R14: 8 | S14: 0.9385692021 | T14: 1.091952907
A15: 9 | B15: =Retornos_Mensais!E12-$J$3 -> 0.1099946155 | C15: =Retornos_Mensais!D12-$J$3 -> 0.07109483656 | E15: =$I$7+$I$8*C15 -> 0.02625472106 | F15: =B15-E15 -> 0.08373989446 | H15: Beta | I15: =INDEX(LINEST(B7:B134,C7:C134,TRUE,TRUE),1,1) -> 0.2031924783 | K15: Estatística de regressão | R15: 9 | S15: 1.143884836 | T15: 1.336804225
A16: 10 | B16: =Retornos_Mensais!E13-$J$3 -> -0.06871764803 | C16: =Retornos_Mensais!D13-$J$3 -> 0.06249291923 | E16: =$I$7+$I$8*C16 -> 0.02450687616 | F16: =B16-E16 -> -0.09322452419 | H16: Beta (Erro-Padrão) | I16: =INDEX(LINEST(B7:B134,C7:C134,TRUE,TRUE),2,1) -> 0.1154988216 | K16: R múltiplo | L16: 0.1547861586 | R16: 10 | S16: -0.9385122925 | T16: -1.023560553
A17: 11 | B17: =Retornos_Mensais!E14-$J$3 -> 0.02998348197 | C17: =Retornos_Mensais!D14-$J$3 -> 0.05558175038 | E17: =$I$7+$I$8*C17 -> 0.02310257863 | F17: =B17-E17 -> 0.006880903344 | K17: R-Quadrado | L17: 0.0239587549 | R17: 11 | S17: 0.2115763787 | T17: 0.1669029731
A18: 12 | B18: =Retornos_Mensais!E15-$J$3 -> 0.03792201666 | C18: =Retornos_Mensais!D15-$J$3 -> 0.0004966313974 | E18: =$I$7+$I$8*C18 -> 0.01190969679 | F18: =B18-E18 -> 0.02601231987 | H18: Sp Risk from STEYX | K18: R-quadrado ajustado | L18: 0.01615042493 | R18: 12 | S18: 0.3040780431 | T18: 0.2669941254
A19: 13 | B19: =Retornos_Mensais!E16-$J$3 -> 0.07296733898 | C19: =Retornos_Mensais!D16-$J$3 -> -0.02021678859 | E19: =$I$7+$I$8*C19 -> 0.007700885647 | F19: =B19-E19 -> 0.06526645334 | H19: Mensal | I19: =I10 -> 0.08512124262 | K19: Erro padrão | L19: 0.08545124312 | R19: 13 | S19: 0.7124343424 | T19: 0.8423177173
A20: 14 | B20: =Retornos_Mensais!E17-$J$3 -> 0.06756415068 | C20: =Retornos_Mensais!D17-$J$3 -> 0.03938744456 | E20: =$I$7+$I$8*C20 -> 0.0198120175 | F20: =B20-E20 -> 0.04775213318 | H20: Anualizado | I20: =I10*SQRT(12) -> 0.2948686341 | K20: Observações | L20: 127 | R20: 14 | S20: 0.6494751274 | T20: 0.6607511271
A21: 15 | B21: =Retornos_Mensais!E18-$J$3 -> 0.1373293634 | C21: =Retornos_Mensais!D18-$J$3 -> 0.06325494027 | E21: =$I$7+$I$8*C21 -> 0.0246617131 | F21: =B21-E21 -> 0.1126676503 | H21: via função VBA | I21: =PortfolioSpecificRisk(B7:B134,C7:C134,12) -> 0.2948686341 | R21: 15 | S21: 1.462395717 | T21: 1.798329823
A22: 16 | B22: =Retornos_Mensais!E19-$J$3 -> -0.0717062302 | C22: =Retornos_Mensais!D19-$J$3 -> 0.06218865382 | E22: =$I$7+$I$8*C22 -> 0.02444505171 | F22: =B22-E22 -> -0.09615128191 | K22: ANOVA | R22: 16 | S22: -0.9733359514 | T22: -1.057138587
A23: 17 | B23: =Retornos_Mensais!E20-$J$3 -> -0.09894412851 | C23: =Retornos_Mensais!D20-$J$3 -> 0.03655901532 | E23: =$I$7+$I$8*C23 -> 0.01923730195 | F23: =B23-E23 -> -0.1181814305 | H23: Sp Risk from Residuals | L23: gl | M23: SQ | N23: MQ | O23: F | P23: F de significação | R23: 17 | S23: -1.290718319 | T23: -1.336804225
A24: 18 | B24: =Retornos_Mensais!E21-$J$3 -> 0.0355912552 | C24: =Retornos_Mensais!D21-$J$3 -> -0.007123617897 | E24: =$I$7+$I$8*C24 -> 0.01036131945 | F24: =B24-E24 -> 0.02522993575 | H24: Annualised | I24: =SQRT(SUMSQ(F7:F134)/(COUNT(F7:F134)-2))*SQRT(12) -> 0.2950869466 | K24: Regressão | L24: 1 | M24: 0.02240489214 | N24: 0.02240489214 | O24: 3.068358409 | P24: 0.08228263201 | R24: 18 | S24: 0.276919465 | T24: 0.246793261
A25: 19 | B25: =Retornos_Mensais!E22-$J$3 -> -0.01477546402 | C25: =Retornos_Mensais!D22-$J$3 -> 0.005070363032 | E25: =$I$7+$I$8*C25 -> 0.01283904465 | F25: =B25-E25 -> -0.02761450867 | K25: Resíduo | L25: 125 | M25: 0.9127393688 | N25: 0.007301914951 | R25: 19 | S25: -0.3099653374 | T25: -0.3908522745
A26: 20 | B26: =Retornos_Mensais!E23-$J$3 -> 0.06982380653 | C26: =Retornos_Mensais!D23-$J$3 -> 0.09807963653 | E26: =$I$7+$I$8*C26 -> 0.03173782944 | F26: =B26-E26 -> 0.03808597709 | K26: Total | L26: 126 | M26: 0.935144261 | R26: 20 | S26: 0.6758051664 | T26: 0.7355767699
A27: 21 | B27: =Retornos_Mensais!E24-$J$3 -> -0.0484860826 | C27: =Retornos_Mensais!D24-$J$3 -> 0.07392922412 | E27: =$I$7+$I$8*C27 -> 0.02683064729 | F27: =B27-E27 -> -0.07531672989 | R27: 21 | S27: -0.7027693562 | T27: -0.8994349077
A28: 22 | B28: =Retornos_Mensais!E25-$J$3 -> -0.03631359386 | C28: =Retornos_Mensais!D25-$J$3 -> -0.03931142897 | E28: =$I$7+$I$8*C28 -> 0.003820998347 | F28: =B28-E28 -> -0.04013459221 | L28: Coeficientes | M28: Erro padrão | N28: Stat t | O28: valor-P | P28: 95% inferiores | R28: 22 | S28: -0.560932668 | T28: -0.6852639311
A29: 23 | B29: =Retornos_Mensais!E26-$J$3 -> -0.2202990946 | C29: =Retornos_Mensais!D26-$J$3 -> 0.01059654531 | E29: =$I$7+$I$8*C29 -> 0.01396192333 | F29: =B29-E29 -> -0.2342610179 | K29: Interseção | L29: 0.01192231721 | M29: 0.007582582541 | N29: 1.572329368 | O29: 0.1184019864 | P29: -0.003084554705 | R29: 23 | S29: -2.70477479 | T29: -2.23616247
A30: 24 | B30: =Retornos_Mensais!E27-$J$3 -> 0.1189580976 | C30: =Retornos_Mensais!D27-$J$3 -> -0.07456575363 | E30: =$I$7+$I$8*C30 -> -0.00334241525 | F30: =B30-E30 -> 0.1223005128 | K30: -0.003273739782 | L30: 0.2031026409 | M30: 0.1159478038 | N30: 1.751673031 | O30: 0.08228263201 | P30: -0.02637245296 | R30: 24 | S30: 1.248329427 | T30: 1.559371904
A31: 25 | B31: =Retornos_Mensais!E28-$J$3 -> 0.1107142249 | C31: =Retornos_Mensais!D28-$J$3 -> 0.06178469156 | E31: =$I$7+$I$8*C31 -> 0.02436296962 | F31: =B31-E31 -> 0.08635125528 | R31: 25 | S31: 1.152269893 | T31: 1.386179801
A32: 26 | B32: =Retornos_Mensais!E29-$J$3 -> 0.05099358154 | C32: =Retornos_Mensais!D29-$J$3 -> -0.04379126596 | E32: =$I$7+$I$8*C32 -> 0.002910729166 | F32: =B32-E32 -> 0.04808285237 | R32: 26 | S32: 0.4563909769 | T32: 0.4334094328
A33: 27 | B33: =Retornos_Mensais!E30-$J$3 -> 0.02629671754 | C33: =Retornos_Mensais!D30-$J$3 -> 0.103941766 | E33: =$I$7+$I$8*C33 -> 0.03292897006 | F33: =B33-E33 -> -0.006632252521 | R33: 27 | S33: 0.1686173365 | T33: 0.08806556972
A34: 28 | B34: =Retornos_Mensais!E31-$J$3 -> -0.1140881061 | C34: =Retornos_Mensais!D31-$J$3 -> 0.06403011649 | E34: =$I$7+$I$8*C34 -> 0.02481922308 | F34: =B34-E34 -> -0.1389073292 | R34: 28 | S34: -1.467179491 | T34: -1.559371904
A35: 29 | B35: =Retornos_Mensais!E32-$J$3 -> -0.0006729580821 | C35: =Retornos_Mensais!D32-$J$3 -> -0.1134780836 | E35: =$I$7+$I$8*C35 -> -0.01124910801 | F35: =B35-E35 -> 0.01057614993 | R35: 29 | S35: -0.145639637 | T35: -0.1669029731
A36: 30 | B36: =Retornos_Mensais!E33-$J$3 -> 0.07776747022 | C36: =Retornos_Mensais!D33-$J$3 -> -0.09187755178 | E36: =$I$7+$I$8*C36 -> -0.006860042421 | F36: =B36-E36 -> 0.08462751264 | R36: 30 | S36: 0.7683665952 | T36: 0.8994349077
A37: 31 | B37: =Retornos_Mensais!E34-$J$3 -> -0.2384656296 | C37: =Retornos_Mensais!D34-$J$3 -> -0.06971306639 | E37: =$I$7+$I$8*C37 -> -0.002356385704 | F37: =B37-E37 -> -0.2361092439 | R37: 31 | S37: -2.916455509 | T37: -2.584692474
A38: 32 | B38: =Retornos_Mensais!E35-$J$3 -> -0.1947277801 | C38: =Retornos_Mensais!D35-$J$3 -> -0.1200941462 | E38: =$I$7+$I$8*C38 -> -0.01259344218 | F38: =B38-E38 -> -0.182134338 | R38: 32 | S38: -2.406811849 | T38: -1.906925663
A39: 33 | B39: =Retornos_Mensais!E36-$J$3 -> 0.04507945693 | C39: =Retornos_Mensais!D36-$J$3 -> -0.2882345027 | E39: =$I$7+$I$8*C39 -> -0.04675829791 | F39: =B39-E39 -> 0.09183775484 | R39: 33 | S39: 0.3874782126 | T39: 0.3489917322
A40: 34 | B40: =Retornos_Mensais!E37-$J$3 -> 0.03109390372 | C40: =Retornos_Mensais!D37-$J$3 -> -0.0211746416 | E40: =$I$7+$I$8*C40 -> 0.007506257121 | F40: =B40-E40 -> 0.0235876466 | R40: 34 | S40: 0.2245152728 | T40: 0.1867561211
A41: 35 | B41: =Retornos_Mensais!E38-$J$3 -> 0.06684462423 | C41: =Retornos_Mensais!D38-$J$3 -> 0.02246069361 | E41: =$I$7+$I$8*C41 -> 0.01637262902 | F41: =B41-E41 -> 0.0504719952 | R41: 35 | S41: 0.6410910368 | T41: 0.6366290907
A42: 36 | B42: =Retornos_Mensais!E39-$J$3 -> 0.07252009959 | C42: =Retornos_Mensais!D39-$J$3 -> 0.04230284585 | E42: =$I$7+$I$8*C42 -> 0.02040440511 | F42: =B42-E42 -> 0.05211569448 | R42: 36 | S42: 0.7072230042 | T42: 0.8147687735
A43: 37 | B43: =Retornos_Mensais!E40-$J$3 -> 0.01409283272 | C43: =Retornos_Mensais!D40-$J$3 -> -0.03213331325 | E43: =$I$7+$I$8*C43 -> 0.00527953747 | F43: =B43-E43 -> 0.008813295246 | R43: 37 | S43: 0.02641481379 | T43: -0.02932149074
A44: 38 | B44: =Retornos_Mensais!E41-$J$3 -> 0.3596941311 | C44: =Retornos_Mensais!D41-$J$3 -> 0.06610142774 | E44: =$I$7+$I$8*C44 -> 0.02524009794 | F44: =B44-E44 -> 0.3344540332 | R44: 38 | S44: 4.053442042 | T44: 2.584692474
A45: 39 | B45: =Retornos_Mensais!E42-$J$3 -> 0.1644710321 | C45: =Retornos_Mensais!D42-$J$3 -> 0.141259559 | E45: =$I$7+$I$8*C45 -> 0.04051166489 | F45: =B45-E45 -> 0.1239593673 | R45: 39 | S45: 1.778656795 | T45: 1.906925663
A46: 40 | B46: =Retornos_Mensais!E43-$J$3 -> -0.03848562141 | C46: =Retornos_Mensais!D43-$J$3 -> 0.1144482052 | E46: =$I$7+$I$8*C46 -> 0.03506379947 | F46: =B46-E46 -> -0.07354942089 | R46: 40 | S46: -0.5862416414 | T46: -0.7101956049
A47: 41 | B47: =Retornos_Mensais!E44-$J$3 -> 0.1113964529 | C47: =Retornos_Mensais!D44-$J$3 -> -0.03639257646 | E47: =$I$7+$I$8*C47 -> 0.004414087222 | F47: =B47-E47 -> 0.1069823657 | R47: 41 | S47: 1.160219373 | T47: 1.439187289
A48: 42 | B48: =Retornos_Mensais!E45-$J$3 -> 0.08471144194 | C48: =Retornos_Mensais!D45-$J$3 -> 0.05889385869 | E48: =$I$7+$I$8*C48 -> 0.02377557412 | F48: =B48-E48 -> 0.06093586781 | R48: 42 | S48: 0.8492793791 | T48: 1.057138587
A49: 43 | B49: =Retornos_Mensais!E46-$J$3 -> 0.05697292927 | C49: =Retornos_Mensais!D46-$J$3 -> 0.0277026257 | E49: =$I$7+$I$8*C49 -> 0.01743775019 | F49: =B49-E49 -> 0.03953517908 | R49: 43 | S49: 0.5260637364 | T49: 0.5210396059
A50: 44 | B50: =Retornos_Mensais!E47-$J$3 -> 0.09520833484 | C50: =Retornos_Mensais!D47-$J$3 -> 0.0820101462 | E50: =$I$7+$I$8*C50 -> 0.02847262987 | F50: =B50-E50 -> 0.06673570496 | R50: 44 | S50: 0.9715916323 | T50: 1.20534492
A51: 45 | B51: =Retornos_Mensais!E48-$J$3 -> 0.07854757824 | C51: =Retornos_Mensais!D48-$J$3 -> -0.002818691994 | E51: =$I$7+$I$8*C51 -> 0.01123604801 | F51: =B51-E51 -> 0.06731153022 | R51: 45 | S51: 0.7774565964 | T51: 0.9596488614
A52: 46 | B52: =Retornos_Mensais!E49-$J$3 -> 0.1051124968 | C52: =Retornos_Mensais!D49-$J$3 -> 0.08229051778 | E52: =$I$7+$I$8*C52 -> 0.02852959927 | F52: =B52-E52 -> 0.07658289752 | R52: 46 | S52: 1.086997246 | T52: 1.246786932
A53: 47 | B53: =Retornos_Mensais!E50-$J$3 -> -0.003273739782 | C53: =Retornos_Mensais!D50-$J$3 -> 0.01949473227 | E53: =$I$7+$I$8*C53 -> 0.01576996799 | F53: =B53-E53 -> -0.01904370777 | R53: 47 | S53: -0.1759445542 | T53: -0.2266926175
A54: 48 | B54: =Retornos_Mensais!E51-$J$3 -> -0.004785455868 | C54: =Retornos_Mensais!D51-$J$3 -> -0.05083849306 | E54: =$I$7+$I$8*C54 -> 0.001478785627 | F54: =B54-E54 -> -0.006264241494 | R54: 48 | S54: -0.1935594239 | T54: -0.3077341915
A55: 49 | B55: =Retornos_Mensais!E52-$J$3 -> -0.06034316586 | C55: =Retornos_Mensais!D52-$J$3 -> 0.01342048061 | E55: =$I$7+$I$8*C55 -> 0.01453572574 | F55: =B55-E55 -> -0.0748788916 | R55: 49 | S55: -0.8409308658 | T55: -0.9910986198
A56: 50 | B56: =Retornos_Mensais!E53-$J$3 -> 0.09383068438 | C56: =Retornos_Mensais!D53-$J$3 -> 0.05327465757 | E56: =$I$7+$I$8*C56 -> 0.02263379472 | F56: =B56-E56 -> 0.07119688965 | R56: 50 | S56: 0.9555389266 | T56: 1.128143645
A57: 51 | B57: =Retornos_Mensais!E54-$J$3 -> 0.06190048042 | C57: =Retornos_Mensais!D54-$J$3 -> -0.04449725297 | E57: =$I$7+$I$8*C57 -> 0.002767277916 | F57: =B57-E57 -> 0.0591332025 | R57: 51 | S57: 0.5834807158 | T57: 0.543559495
A58: 52 | B58: =Retornos_Mensais!E55-$J$3 -> 0.07945400132 | C58: =Retornos_Mensais!D55-$J$3 -> -0.07196520337 | E58: =$I$7+$I$8*C58 -> -0.002814002999 | F58: =B58-E58 -> 0.08226800432 | R58: 52 | S58: 0.7880184504 | T58: 0.9910986198
A59: 53 | B59: =Retornos_Mensais!E56-$J$3 -> 0.02799166165 | C59: =Retornos_Mensais!D56-$J$3 -> -0.03733008671 | E59: =$I$7+$I$8*C59 -> 0.004223592192 | F59: =B59-E59 -> 0.02376806946 | R59: 53 | S59: 0.1883672221 | T59: 0.1471153988
A60: 54 | B60: =Retornos_Mensais!E57-$J$3 -> -0.04166854864 | C60: =Retornos_Mensais!D57-$J$3 -> 0.09925192256 | E60: =$I$7+$I$8*C60 -> 0.03197602914 | F60: =B60-E60 -> -0.07364457779 | R60: 54 | S60: -0.6233298546 | T60: -0.7614409066
A61: 55 | B61: =Retornos_Mensais!E58-$J$3 -> 0.005108538971 | C61: =Retornos_Mensais!D58-$J$3 -> -0.03900798054 | E61: =$I$7+$I$8*C61 -> 0.003882656785 | F61: =B61-E61 -> 0.001225882185 | R61: 55 | S61: -0.07827228 | T61: -0.1077046012
A62: 56 | B62: =Retornos_Mensais!E59-$J$3 -> -0.003691189173 | C62: =Retornos_Mensais!D59-$J$3 -> 0.06042975633 | E62: =$I$7+$I$8*C62 -> 0.02408765697 | F62: =B62-E62 -> -0.02777884615 | R62: 56 | S62: -0.1808087722 | T62: -0.246793261
A63: 57 | B63: =Retornos_Mensais!E60-$J$3 -> 0.1859826576 | C63: =Retornos_Mensais!D60-$J$3 -> 0.01447081408 | E63: =$I$7+$I$8*C63 -> 0.0147491456 | F63: =B63-E63 -> 0.171233512 | R63: 57 | S63: 2.029315289 | T63: 2.044180969
A64: 58 | B64: =Retornos_Mensais!E61-$J$3 -> 0.07830943193 | C64: =Retornos_Mensais!D61-$J$3 -> -0.04617731198 | E64: =$I$7+$I$8*C64 -> 0.002425902563 | F64: =B64-E64 -> 0.07588352937 | R64: 58 | S64: 0.7746816599 | T64: 0.9291207526
A65: 59 | B65: =Retornos_Mensais!E62-$J$3 -> -0.01126738746 | C65: =Retornos_Mensais!D62-$J$3 -> 0.02008328145 | E65: =$I$7+$I$8*C65 -> 0.01588955675 | F65: =B65-E65 -> -0.02715694422 | R65: 59 | S65: -0.2690884081 | T65: -0.3489917322
A66: 60 | B66: =Retornos_Mensais!E63-$J$3 -> -0.0455681929 | C66: =Retornos_Mensais!D63-$J$3 -> -0.04346166175 | E66: =$I$7+$I$8*C134 -> 0.01494350619 | F66: =B134-E66 -> 0.06090195848 | R66: 60 | S66: -0.6687694224 | T66: -0.8423177173
A67: 61 | B67: =Retornos_Mensais!E64-$J$3 -> -0.03491441291 | C67: =Retornos_Mensais!D64-$J$3 -> 0.008789889103 | E67: =$I$7+$I$8*C67 -> 0.01359482437 | F67: =B67-E67 -> -0.04850923728 | R67: 61 | S67: -0.544629084 | T67: -0.5894557978
A68: 62 | B68: =Retornos_Mensais!E65-$J$3 -> -0.004657344292 | C68: =Retornos_Mensais!D65-$J$3 -> 0.01443651203 | E68: 0.01474217568 | F68: -0.01939951997 | R68: 62 | S68: -0.1920666378 | T68: -0.2669941254
A69: 63 | B69: =Retornos_Mensais!E66-$J$3 -> -0.04714352629 | C69: =Retornos_Mensais!D66-$J$3 -> -0.03970888634 | E69: 0.003740238 | F69: -0.05088376429 | R69: 63 | S69: -0.6871255758 | T69: -0.870521281
A70: 64 | B70: =Retornos_Mensais!E67-$J$3 -> 0.04543031029 | C70: =Retornos_Mensais!D67-$J$3 -> -0.02641764523 | E70: 0.006440918219 | F70: 0.03898939207 | R70: 64 | S70: 0.391566438 | T70: 0.369840986
A71: 65 | B71: =Retornos_Mensais!E68-$J$3 -> -0.09295048891 | C71: =Retornos_Mensais!D68-$J$3 -> -0.03816832429 | E71: 0.004053268619 | F71: -0.09700375753 | R71: 65 | S71: -1.220879027 | T71: -1.246786932
A72: 66 | B72: =Retornos_Mensais!E69-$J$3 -> -0.08243765762 | C72: =Retornos_Mensais!D69-$J$3 -> -0.06237018078 | E72: -0.0008643665795 | F72: -0.08157329104 | R72: 66 | S72: -1.098381056 | T72: -1.16587567
A73: 67 | B73: =Retornos_Mensais!E70-$J$3 -> 0.06908485878 | C73: =Retornos_Mensais!D70-$J$3 -> -0.04365453601 | E73: 0.002938511665 | F73: 0.06614634712 | R73: 67 | S73: 0.6671947743 | T73: 0.7101956049
A74: 68 | B74: =Retornos_Mensais!E71-$J$3 -> 0.1089297734 | C74: =Retornos_Mensais!D71-$J$3 -> -0.07997072162 | E74: -0.004440664091 | F74: 0.1133704375 | R74: 68 | S74: 1.131477047 | T74: 1.29048853
A75: 69 | B75: =Retornos_Mensais!E72-$J$3 -> -0.1188973589 | C75: =Retornos_Mensais!D72-$J$3 -> 0.1055247854 | E75: 0.0332506277 | F75: -0.1521479866 | R75: 69 | S75: -1.52321803 | T75: -1.628996121
A76: 70 | B76: =Retornos_Mensais!E73-$J$3 -> 0.1311613175 | C76: =Retornos_Mensais!D73-$J$3 -> -0.02867154457 | E76: 0.005982942827 | F76: 0.1251783747 | R76: 70 | S76: 1.390524202 | T76: 1.628996121
A77: 71 | B77: =Retornos_Mensais!E74-$J$3 -> 0.02332444617 | C77: =Retornos_Mensais!D74-$J$3 -> -0.005403478594 | E77: 0.01071083882 | F77: 0.01261360735 | R77: 71 | S77: 0.1339837347 | T77: 0.04888160901
A78: 72 | B78: =Retornos_Mensais!E75-$J$3 -> -0.1048250008 | C78: =Retornos_Mensais!D75-$J$3 -> 0.1022770527 | E78: 0.03259071284 | F78: -0.1374157137 | R78: 72 | S78: -1.359243619 | T78: -1.386179801
A79: 73 | B79: =Retornos_Mensais!E76-$J$3 -> 0.05591513161 | C79: =Retornos_Mensais!D76-$J$3 -> 0.03925152177 | E79: 0.01978439901 | F79: 0.0361307326 | R79: 73 | S79: 0.5137380304 | T79: 0.4987809304
A80: 74 | B80: =Retornos_Mensais!E77-$J$3 -> 0.06468185739 | C80: =Retornos_Mensais!D77-$J$3 -> -0.02324018041 | E80: 0.007086555171 | F80: 0.05759530222 | R80: 74 | S80: 0.6158899713 | T80: 0.5894557978
A81: 75 | B81: =Retornos_Mensais!E78-$J$3 -> 0.09415903497 | C81: =Retornos_Mensais!D78-$J$3 -> -0.04588255497 | E81: 0.002485794969 | F81: 0.09167324 | R81: 75 | S81: 0.9593649447 | T81: 1.16587567
A82: 76 | B82: =Retornos_Mensais!E79-$J$3 -> -0.02090680252 | C82: =Retornos_Mensais!D79-$J$3 -> -0.1294834779 | E82: -0.01450128374 | F82: -0.006405518772 | R82: 76 | S82: -0.3814091288 | T82: -0.4549811403
A83: 77 | B83: =Retornos_Mensais!E80-$J$3 -> 0.05534176305 | C83: =Retornos_Mensais!D80-$J$3 -> -0.005754332721 | E83: 0.0106395479 | F83: 0.04470221516 | R83: 77 | S83: 0.5070570058 | T83: 0.4767666938
A84: 78 | B84: =Retornos_Mensais!E81-$J$3 -> -0.02692866214 | C84: =Retornos_Mensais!D81-$J$3 -> 0.02827198972 | E84: 0.01755344068 | F84: -0.04448210282 | R84: 78 | S84: -0.4515772467 | T84: -0.5210396059
A85: 79 | B85: =Retornos_Mensais!E82-$J$3 -> 0.03945013412 | C85: =Retornos_Mensais!D82-$J$3 -> 0.0137647961 | E85: 0.01460568806 | F85: 0.02484444606 | R85: 79 | S85: 0.3218840255 | T85: 0.2873045458
A86: 80 | B86: =Retornos_Mensais!E83-$J$3 -> 0.06200654612 | C86: =Retornos_Mensais!D83-$J$3 -> 0.03312144346 | E86: 0.0185388132 | F86: 0.04346773291 | R86: 80 | S86: 0.5847166181 | T86: 0.5663585038
A87: 81 | B87: =Retornos_Mensais!E84-$J$3 -> -0.02267199991 | C87: =Retornos_Mensais!D84-$J$3 -> -0.03954625482 | E87: 0.003773283501 | F87: -0.02644528341 | R87: 81 | S87: -0.401977622 | T87: -0.4767666938
A88: 82 | B88: =Retornos_Mensais!E85-$J$3 -> -0.03548812683 | C88: =Retornos_Mensais!D85-$J$3 -> 0.003832791614 | E88: 0.01258757945 | F88: -0.04807570628 | R88: 82 | S88: -0.5513141329 | T88: -0.6366290907
A89: 83 | B89: =Retornos_Mensais!E86-$J$3 -> 0.006526365139 | C89: =Retornos_Mensais!D86-$J$3 -> 0.05546285874 | E89: 0.02307842074 | F89: -0.0165520556 | R89: 83 | S89: -0.0617514376 | T89: -0.06846044899
A90: 84 | B90: =Retornos_Mensais!E87-$J$3 -> 0.06793070651 | C90: =Retornos_Mensais!D87-$J$3 -> -0.02300713467 | E90: 0.007133908313 | F90: 0.0607967982 | R90: 84 | S90: 0.6537463218 | T90: 0.6852639311
A91: 85 | B91: =Retornos_Mensais!E88-$J$3 -> 0.005523970921 | C91: =Retornos_Mensais!D88-$J$3 -> -0.04316467966 | E91: 0.003038046789 | F91: 0.002485924132 | R91: 85 | S91: -0.07343156967 | T91: -0.08806556972
A92: 86 | B92: =Retornos_Mensais!E89-$J$3 -> -0.04272805686 | C92: =Retornos_Mensais!D89-$J$3 -> -0.02211834187 | E92: 0.007314504323 | F92: -0.05004256118 | R92: 86 | S92: -0.6356754924 | T92: -0.7878247528
A93: 87 | B93: =Retornos_Mensais!E90-$J$3 -> -0.09881173597 | C93: =Retornos_Mensais!D90-$J$3 -> -0.01114821706 | E93: 0.009543551171 | F93: -0.1083552871 | R93: 87 | S93: -1.28917565 | T93: -1.29048853
A94: 88 | B94: =Retornos_Mensais!E91-$J$3 -> -0.004667079843 | C94: =Retornos_Mensais!D91-$J$3 -> -0.04722319767 | E94: 0.002213386456 | F94: -0.0068804663 | R94: 88 | S94: -0.1921800787 | T94: -0.2873045458
A95: 89 | B95: =Retornos_Mensais!E92-$J$3 -> -0.07914223797 | C95: =Retornos_Mensais!D92-$J$3 -> -0.123243499 | E95: -0.01323336698 | F95: -0.06590887099 | R95: 89 | S95: -1.059982055 | T95: -1.128143645
A96: 90 | B96: =Retornos_Mensais!E93-$J$3 -> 0.0251979343 | C96: =Retornos_Mensais!D93-$J$3 -> 0.01296638891 | E96: 0.01444345772 | F96: 0.01075447658 | R96: 90 | S96: 0.155814057 | T96: 0.06846044899
A97: 91 | B97: =Retornos_Mensais!E94-$J$3 -> 0.0329059168 | C97: =Retornos_Mensais!D94-$J$3 -> 0.03284508627 | E97: 0.0184826595 | F97: 0.01442325729 | R97: 91 | S97: 0.2456292733 | T97: 0.2066831598
A98: 92 | B98: =Retornos_Mensais!E95-$J$3 -> 0.001228237433 | C98: =Retornos_Mensais!D95-$J$3 -> 0.04226595227 | E98: 0.02039690861 | F98: -0.01916867118 | R98: 92 | S98: -0.1234864618 | T98: -0.1273852656
A99: 93 | B99: =Retornos_Mensais!E96-$J$3 -> 0.009557677551 | C99: =Retornos_Mensais!D96-$J$3 -> 0.03271716092 | E99: 0.01845666603 | F99: -0.008898988482 | R99: 93 | S99: -0.0264298758 | T99: -0.04888160901
A100: 94 | B100: =Retornos_Mensais!E97-$J$3 -> -0.03337870001 | C100: =Retornos_Mensais!D97-$J$3 -> -0.0365170715 | E100: 0.004388790766 | F100: -0.03776749078 | R100: 94 | S100: -0.5267345978 | T100: -0.543559495
A101: 95 | B101: =Retornos_Mensais!E98-$J$3 -> -0.0004214845684 | C101: =Retornos_Mensais!D98-$J$3 -> -0.02202627268 | E101: 0.00733321209 | F101: -0.007754696658 | R101: 95 | S101: -0.1427094088 | T101: -0.1471153988
A102: 96 | B102: =Retornos_Mensais!E99-$J$3 -> -0.1562383768 | C102: =Retornos_Mensais!D99-$J$3 -> -0.08133970704 | E102: -0.004718831632 | F102: -0.1515195452 | R102: 96 | S102: -1.958324311 | T102: -1.798329823
A103: 97 | B103: =Retornos_Mensais!E100-$J$3 -> 0.01676964519 | C103: =Retornos_Mensais!D100-$J$3 -> -0.01477988891 | E103: 0.008805622767 | F103: 0.007964022419 | R103: 97 | S103: 0.05760565929 | T103: -0.009772585471
A104: 98 | B104: =Retornos_Mensais!E101-$J$3 -> 0.114147776 | C104: =Retornos_Mensais!D101-$J$3 -> 0.06486940569 | E104: 0.02498976033 | F104: 0.08915801571 | R104: 98 | S104: 1.192278435 | T104: 1.496578669
A105: 99 | B105: =Retornos_Mensais!E102-$J$3 -> 0.02016930064 | C105: =Retornos_Mensais!D102-$J$3 -> 0.02048230182 | E105: 0.01597063469 | F105: 0.00419866595 | R105: 99 | S105: 0.09721924046 | T105: 0.02932149074
A106: 100 | B106: =Retornos_Mensais!E103-$J$3 -> 0.07077368075 | C106: =Retornos_Mensais!D103-$J$3 -> -0.0108175704 | E106: 0.009610736086 | F106: 0.06116294466 | R106: 100 | S106: 0.6868733231 | T106: 0.7614409066
A107: 101 | B107: =Retornos_Mensais!E104-$J$3 -> -0.03553890362 | C107: =Retornos_Mensais!D104-$J$3 -> 0.033682011 | E107: 0.01865271631 | F107: -0.05419161993 | R107: 101 | S107: -0.551905796 | T107: -0.6607511271
A108: 102 | B108: =Retornos_Mensais!E105-$J$3 -> 0.02741579348 | C108: =Retornos_Mensais!D105-$J$3 -> 0.04556299625 | E108: 0.02106684315 | F108: 0.00634895033 | R108: 102 | S108: 0.1816570713 | T108: 0.1273852656
A109: 103 | B109: =Retornos_Mensais!E106-$J$3 -> 0.05516870844 | C109: =Retornos_Mensais!D106-$J$3 -> 0.09001687779 | E109: 0.03009953751 | F109: 0.02506917093 | R109: 103 | S109: 0.5050405329 | T109: 0.4549811403
A110: 104 | B110: =Retornos_Mensais!E107-$J$3 -> -0.109626319 | C110: =Retornos_Mensais!D107-$J$3 -> -0.1277279143 | E110: -0.01414456642 | F110: -0.0954817526 | R110: 104 | S110: -1.415189703 | T110: -1.439187289
A111: 105 | B111: =Retornos_Mensais!E108-$J$3 -> -0.03350274174 | C111: =Retornos_Mensais!D108-$J$3 -> 0.006161246756 | E111: 0.01306070402 | F111: -0.04656344576 | R111: 105 | S111: -0.5281799611 | T111: -0.5663585038
A112: 106 | B112: =Retornos_Mensais!E109-$J$3 -> -0.02018200905 | C112: =Retornos_Mensais!D109-$J$3 -> -0.002633259583 | E112: 0.01127372648 | F112: -0.03145573553 | R112: 106 | S112: -0.3729636657 | T112: -0.4334094328
A113: 107 | B113: =Retornos_Mensais!E110-$J$3 -> -0.01431715338 | C113: =Retornos_Mensais!D110-$J$3 -> -0.09231610163 | E113: -0.006949152451 | F113: -0.007368000931 | R113: 107 | S113: -0.3046249945 | T113: -0.369840986
A114: 108 | B114: =Retornos_Mensais!E111-$J$3 -> -0.04504592258 | C114: =Retornos_Mensais!D111-$J$3 -> -0.06724849881 | E114: -0.00185560411 | F114: -0.04319031847 | R114: 108 | S114: -0.6626838064 | T114: -0.8147687735
A115: 109 | B115: =Retornos_Mensais!E112-$J$3 -> 0.01842693095 | C115: =Retornos_Mensais!D112-$J$3 -> 0.09173018446 | E115: 0.03044766854 | F115: -0.01202073758 | R115: 109 | S115: 0.07691674097 | T115: 0.009772585471
A116: 110 | B116: =Retornos_Mensais!E113-$J$3 -> 0.08129976441 | C116: =Retornos_Mensais!D113-$J$3 -> -0.01170340822 | E116: 0.009430740502 | F116: 0.07186902391 | R116: 110 | S116: 0.8095257139 | T116: 1.023560553
A117: 111 | B117: =Retornos_Mensais!E114-$J$3 -> -0.05068129855 | C117: =Retornos_Mensais!D114-$J$3 -> 0.09139640587 | E117: 0.03037984724 | F117: -0.08106114578 | R117: 111 | S117: -0.7283485262 | T117: -0.9291207526
A118: 112 | B118: =Retornos_Mensais!E115-$J$3 -> 0.06581488504 | C118: =Retornos_Mensais!D115-$J$3 -> -0.06695304998 | E118: -0.001795571129 | F118: 0.06761045617 | R118: 112 | S118: 0.6290922748 | T118: 0.612871947
A119: 113 | B119: =Retornos_Mensais!E116-$J$3 -> 0.04462236979 | C119: =Retornos_Mensais!D116-$J$3 -> 0.002791981143 | E119: 0.01237609459 | F119: 0.0322462752 | R119: 113 | S119: 0.3821521262 | T119: 0.328293103
A120: 114 | B120: =Retornos_Mensais!E117-$J$3 -> -0.006601529875 | C120: =Retornos_Mensais!D117-$J$3 -> -0.04591772431 | E120: 0.002478648824 | F120: -0.009080178699 | R120: 114 | S120: -0.2147207433 | T120: -0.328293103
A121: 115 | B121: =Retornos_Mensais!E118-$J$3 -> -0.1097745064 | C121: =Retornos_Mensais!D118-$J$3 -> -0.09029047857 | E121: -0.006537561082 | F121: -0.1032369453 | R121: 115 | S121: -1.416916417 | T121: -1.496578669
A122: 116 | B122: =Retornos_Mensais!E119-$J$3 -> -0.03544576527 | C122: =Retornos_Mensais!D119-$J$3 -> -0.03745932311 | E122: 0.004197332326 | F122: -0.0396430976 | R122: 116 | S122: -0.5508205261 | T122: -0.612871947
A123: 117 | B123: =Retornos_Mensais!E120-$J$3 -> -0.02380712002 | C123: =Retornos_Mensais!D120-$J$3 -> 0.01454302572 | E123: 0.01476381846 | F123: -0.03857093848 | R123: 117 | S123: -0.4152043073 | T123: -0.4987809304
A124: 118 | B124: =Retornos_Mensais!E121-$J$3 -> -0.07267473509 | C124: =Retornos_Mensais!D121-$J$3 -> -0.01973764022 | E124: 0.007798244992 | F124: -0.08047298008 | R124: 118 | S124: -0.9846211971 | T124: -1.091952907
A125: 119 | B125: =Retornos_Mensais!E122-$J$3 -> 0.03993020456 | C125: =Retornos_Mensais!D122-$J$3 -> -0.04329264375 | E125: 0.00301204545 | F125: 0.03691815911 | R125: 119 | S125: 0.3274779186 | T125: 0.3077341915
A126: 120 | B126: =Retornos_Mensais!E123-$J$3 -> -0.04101406777 | C126: =Retornos_Mensais!D123-$J$3 -> -0.07360215422 | E126: -0.003146619098 | F126: -0.03786744867 | R126: 120 | S126: -0.6157036902 | T126: -0.7355767699
A127: 121 | B127: =Retornos_Mensais!E124-$J$3 -> -0.01650187266 | C127: =Retornos_Mensais!D124-$J$3 -> 0.05414587727 | E127: 0.02281082001 | F127: -0.03931269268 | R127: 121 | S127: -0.330081855 | T127: -0.4120375636
A128: 122 | B128: =Retornos_Mensais!E125-$J$3 -> -0.1499284965 | C128: =Retornos_Mensais!D125-$J$3 -> 0.1534507552 | E128: 0.04298882427 | F128: -0.1929173207 | R128: 122 | S128: -1.884800108 | T128: -1.707553094
A129: 123 | B129: =Retornos_Mensais!E126-$J$3 -> 0.04696597233 | C129: =Retornos_Mensais!D126-$J$3 -> 0.07093839807 | E129: 0.02622293393 | F129: 0.0207430384 | R129: 123 | S129: 0.4094603316 | T129: 0.4120375636
A130: 124 | B130: =Retornos_Mensais!E127-$J$3 -> 0.04592508806 | C130: =Retornos_Mensais!D127-$J$3 -> -0.1096219669 | E130: -0.0104655741 | F130: 0.05639066216 | R130: 124 | S130: 0.3973317045 | T130: 0.3908522745
A131: 125 | B131: =Retornos_Mensais!E128-$J$3 -> 0.02723994358 | C131: =Retornos_Mensais!D128-$J$3 -> 0.05784589071 | E131: =$I$7+$I$8*C131 -> 0.02356263491 | F131: =B131-E131 -> 0.003677308663 | R131: 125 | S131: 0.1796080271 | T131: 0.1077046012
A132: 126 | B132: =Retornos_Mensais!E129-$J$3 -> 0.07116442884 | C132: =Retornos_Mensais!D129-$J$3 -> 0.1030605481 | E132: 0.03274991321 | F132: 0.03841451563 | R132: 126 | S132: 0.6914264114 | T132: 0.7878247528
A133: 127 | B133: =Retornos_Mensais!E130-$J$3 -> -0.08700195531 | C133: =Retornos_Mensais!D130-$J$3 -> 0.007020685774 | E133: 0.01323533557 | F133: -0.1002372909 | R133: 127 | S133: -1.151565321 | T133: -1.20534492
A134: 128 | B134: =Retornos_Mensais!E131-$J$3 -> 0.07584546467 | C134: =Retornos_Mensais!D131-$J$3 -> 0.01542734845 | E134: 0.01494350619 | F134: 0.06090195848 | R134: 128 | S134: 0.7459709366 | T134: 0.870521281
R135: 129
R136: 130
R137: 131
R138: 132
R139: 133
R140: 134

Sheet Custo_capital
B2: =Retornos_Mensais!B3 -> ^BVSP | C2: =Retornos_Mensais!C3 -> TOTS3.SA
A3: Beta | B3: =_xlfn.COVARIANCE.P(Retornos_Mensais!$D$4:$D$2388,Retornos_Mensais!D4:D2388)/_xlfn.VAR.P(Retornos_Mensais!$D$4:$D$2388) -> 1 | C3: =_xlfn.COVARIANCE.S(dvec_bovespa,dvec_totvs)/_xlfn.VAR.S(dvec_bovespa) -> 0.2031924783 | D3: Desde IPO
A4: Beta | B4: =_xlfn.COVARIANCE.S(OFFSET(Retornos_Mensais!D4,0,0,D4,1),OFFSET(Retornos_Mensais!D4,0,0,D4,1))/_xlfn.VAR.S(OFFSET(Retornos_Mensais!D4,0,0,D4,1)) -> 1 | C4: =_xlfn.COVARIANCE.S(OFFSET(Retornos_Mensais!D4,0,0,D4,1),OFFSET(Retornos_Mensais!E4,0,0,D4,1))/_xlfn.VAR.S(OFFSET(Retornos_Mensais!D4,0,0,D4,1)) -> 0.3473392845 | D4: 48 | E4: -> digite ao lado o periodo para o cálculo do Beta (em meses)

Sheet Temp
